bitfinex/quotes_ETHUSD_20230102
["timestamp","ask_amount","ask_price","bid_price","bid_amount"]
[1672678448895,12.82996438,1218.0,1217.9,8.30498606]
[1672678453052,9.14886114,1218.0,1217.9,8.30498606]
[1672678453415,9.14886114,1218.0,1217.9,0.09468606]
[1672678453623,9.14886114,1218.0,1217.8,17.52519606]
[1672678453834,3.67842087,1217.9,1217.8,17.52519606]
[1672678454064,8.67842087,1217.9,1217.8,17.52519606]
[1672678455305,8.67842087,1217.9,1217.8,25.58671606]
[1672678456082,12.82728201,1217.9,1217.8,25.58671606]
[1672678456896,12.82728201,1217.9,1217.8,24.72871606]
[1672678457866,12.82728201,1217.9,1217.8,0.09468606]
[1672678458076,15.85349773,1217.9,1217.7,0.7381486]
[1672678458301,9.14886114,1217.8,1217.7,8.9499786]
[1672678458583,12.82459017,1217.8,1217.7,25.46865466]
[1672678460736,12.82459017,1217.8,1217.7,17.25649466]
[1672678461332,12.82459017,1217.8,1217.7,17.25723466]
[1672678461592,12.82459017,1217.8,1217.7,25.46943466]
[1672678461995,8.06051933,1217.8,1217.7,25.46943466]
[1672678462206,7.44850276,1217.8,1217.7,26.73181848]
[1672678462394,10.50902209,1217.8,1217.7,26.47943466]
[1672678463740,8.06051933,1217.8,1217.7,26.47943466]
[1672678465905,12.20938047,1217.8,1217.7,26.47943466]
[1672678466145,12.20938047,1217.8,1217.7,25.46943466]
[1672678466271,12.20938047,1217.8,1217.7,17.25723466]
[1672678466482,9.14886114,1217.8,1217.7,0.83283466]
[1672678466731,12.82459017,1217.8,1217.7,8.9503486]
[1672678466944,9.14886114,1217.8,1217.7,9.04503466]
[1672678467422,9.14886114,1217.8,1217.7,0.83283466]
[1672678467641,9.14886114,1217.8,1217.7,0.7381486]
[1672678467888,12.82459017,1217.8,1217.7,0.7381486]
[1672678468424,12.82459017,1217.8,1217.7,0.5381486]
[1672678469115,12.82459017,1217.8,1217.7,8.7503486]
[1672678469332,12.82459017,1217.8,1217.7,0.63283466]
[1672678469569,12.82459017,1217.8,1217.7,0.5381486]
[1672678469570,13.44129017,1217.8,1217.7,0.5381486]
[1672678469952,13.44129017,1217.8,1217.7,8.7503486]
[1672678470161,13.44129017,1217.8,1217.7,8.84503466]
[1672678471743,12.82459017,1217.8,1217.7,8.84503466]
[1672678471960,12.82459017,1217.8,1217.7,17.05723466]
[1672678472364,12.82459017,1217.8,1217.7,16.99723466]
[1672678472780,12.82459017,1217.8,1217.7,8.78503466]
[1672678475116,12.81365643,1217.8,1217.7,8.78503466]
[1672678477557,13.42633912,1217.8,1217.7,8.78503466]
[1672678479462,9.1379274,1217.8,1217.7,8.78503466]
[1672678479622,13.42633912,1217.8,1217.7,8.78503466]
[1672678479828,13.42633912,1217.8,1217.6,1.58466266]
[1672678480048,13.27747798,1217.8,1217.7,0.003]
[1672678480451,9.27747798,1217.8,1217.7,8.2122]
[1672678480668,9.27747798,1217.8,1217.7,8.3112]
[1672678480878,9.27747798,1217.8,1217.7,0.099]
[1672678481091,9.27747798,1217.8,1217.6,18.00970266]
[1672678481326,3.67568928,1217.7,1217.6,18.10870266]
[1672678481532,8.67568928,1217.7,1217.6,18.10870266]
[1672678483563,8.67568928,1217.7,1217.6,18.36108648]
[1672678488304,8.67568928,1217.7,1217.6,18.10870266]
[1672678489331,3.67568928,1217.7,1217.6,18.10870266]
[1672678490293,8.67568928,1217.7,1217.6,18.10870266]
[1672678492098,3.06695299,1217.7,1217.6,20.12870266]
[1672678492270,3.74168928,1217.8,1217.7,4.0]
[1672678492476,0.06600928,1217.9,1217.7,6.014]
[1672678492715,9.28e-06,1217.9,1217.8,34.86508]
[1672678492900,9.28e-06,1217.9,1217.8,34.96408]
[1672678493572,9.28e-06,1217.9,1217.8,35.21646382]
[1672678494174,5.00000928,1217.9,1217.8,35.21646382]
[1672678494425,9.28841172,1217.9,1217.8,27.00494382]
[1672678494638,9.28841172,1217.9,1217.8,25.99494382]
[1672678494853,9.13841172,1217.9,1217.8,25.99494382]
[1672678496508,4.85,1217.9,1217.8,25.99494382]
[1672678496718,9.13841172,1217.9,1217.8,25.99494382]
[1672678497898,4.85,1217.9,1217.8,25.99494382]
[1672678500375,9.13841172,1217.9,1217.8,25.99494382]
[1672678500965,4.85,1217.9,1217.8,25.99494382]
[1672678501138,8.5311363,1217.9,1217.8,25.99494382]
[1672678501307,8.53098327,1217.9,1217.8,25.99494382]
[1672678504996,3.68098327,1217.9,1217.8,25.99494382]
[1672678505356,8.68098327,1217.9,1217.8,25.99494382]
[1672678508509,8.68098327,1217.9,1217.8,24.98594382]
[1672678509446,5.0,1217.9,1217.8,24.98594382]
[1672678509650,8.68098327,1217.9,1217.8,24.98594382]
[1672678509838,5.0,1217.9,1217.8,24.98594382]
[1672678511647,8.68098327,1217.9,1217.8,24.98594382]
[1672678515918,8.68098327,1217.9,1217.8,24.98263214]
[1672678522154,3.68098327,1217.9,1217.8,24.98263214]
[1672678522700,8.68098327,1217.9,1217.8,24.98263214]
[1672678530200,8.68098327,1217.9,1217.8,24.73024832]
[1672678530436,3.68098327,1217.9,1217.8,24.73024832]
[1672678531143,5.0,1217.9,1217.8,24.73024832]
[1672678531349,9.28841172,1217.9,1217.8,24.73024832]
[1672678535881,9.29041172,1217.9,1217.8,24.72724832]
[1672678536129,9.28841172,1217.9,1217.8,24.72649453]
[1672678537246,14.88050769,1217.9,1217.8,16.51497453]
[1672678537453,14.88050769,1217.9,1217.8,8.30345453]
[1672678539151,16.28673256,1217.9,1217.8,8.30345453]
[1672678540919,11.20879597,1217.9,1217.8,8.30345453]
[1672678541872,11.20879597,1217.9,1217.8,16.51497453]
[1672678542086,11.20879597,1217.9,1217.8,8.30345453]
[1672678542731,11.20879597,1217.9,1217.8,16.51497453]
[1672678542952,11.20879597,1217.9,1217.8,8.30345453]
[1672678543372,9.76556114,1217.9,1217.8,16.51497453]
[1672678543550,9.76556114,1217.9,1217.8,8.30345453]
[1672678544028,14.06225962,1217.9,1217.8,16.51497453]
[1672678544236,14.06225962,1217.9,1217.8,8.30345453]
[1672678544393,14.06225962,1217.9,1217.8,16.51497453]
[1672678544598,9.29669848,1217.9,1217.8,24.72649453]
[1672678544864,8.68296859,1217.9,1217.8,24.72649453]
[1672678545630,3.68296859,1217.9,1217.8,24.72649453]
[1672678546185,3.74896859,1218.0,1217.8,24.72649453]
[1672678546394,3.68296859,1218.0,1217.8,24.72649453]
[1672678546617,15.55119848,1218.1,1217.9,4.0]
[1672678546833,8.68324164,1218.0,1217.9,12.21038]
[1672678547058,8.68324164,1218.0,1217.9,36.94193]
[1672678550318,3.74865864,1218.1,1218.0,8.62438836]
[1672678550653,5.07793659,1218.4,1218.0,8.62438836]
[1672678550654,8.04535712,1218.2,1218.0,24.72954]
[1672678550967,3.68265864,1218.1,1218.0,16.51936]
[1672678551329,3.6822386,1218.1,1218.0,24.72954]
[1672678551538,7.97893708,1218.1,1218.0,24.72954]
[1672678551965,3.6822386,1218.1,1218.0,24.72954]
[1672678552618,7.36365577,1218.1,1218.0,24.72954]
[1672678555165,3.6822386,1218.1,1218.0,24.72954]
[1672678555324,7.97893708,1218.1,1218.0,24.72954]
[1672678555745,7.36275095,1218.1,1218.0,24.72954]
[1672678555956,7.36224837,1218.1,1218.0,24.72954]
[1672678556160,7.97893708,1218.1,1218.0,24.72954]
[1672678556720,3.6822386,1218.1,1218.0,24.72954]
[1672678556983,7.97893708,1218.1,1218.0,24.72954]
[1672678557261,7.36225632,1218.1,1218.0,24.72954]
[1672678557481,11.6589548,1218.1,1218.0,0.099]
[1672678557636,11.6589548,1218.1,1217.9,24.73052]
[1672678557847,3.6798424,1218.0,1217.9,16.51995]
[1672678558279,3.6798424,1218.0,1217.9,24.7308]
[1672678570090,11.10809872,1218.1,1217.9,24.7308]
[1672678570260,11.04209872,1218.1,1217.9,24.7308]
[1672678570471,11.04209872,1218.1,1217.9,24.72751379]
[1672678572028,3.06512992,1218.0,1217.9,24.72751379]
[1672678574683,7.42825632,1218.1,1218.0,4.0]
[1672678574895,7.36225632,1218.1,1218.0,28.63054]
[1672678575140,7.36225632,1218.1,1218.0,28.98192382]
[1672678577762,0.00830632,1218.1,1218.0,42.75878496]
[1672678577978,1.83938532,1218.2,1218.1,12.622]
[1672678578167,1.83938532,1218.2,1218.1,49.93731114]
[1672678578362,1.83938532,1218.2,1218.1,50.18969496]
[1672678579362,1.83938532,1218.2,1218.1,41.56769496]
[1672678580105,3.7458424,1218.4,1218.1,41.56769496]
[1672678580258,3.6798424,1218.4,1218.3,2.61]
[1672678580461,0.88385353,1218.5,1218.3,2.61]
[1672678580462,4.56369593,1218.5,1218.3,2.61]
[1672678580834,4.49769593,1218.5,1218.3,27.23445]
[1672678581054,4.49769593,1218.5,1218.3,27.33345]
[1672678581724,3.06242383,1218.4,1218.3,27.33345]
[1672678581937,4.56369593,1218.5,1218.3,27.33345]
[1672678582186,4.49769593,1218.5,1218.3,27.33345]
[1672678582579,3.06202546,1218.4,1218.3,27.33345]
[1672678583478,3.06202546,1218.4,1218.3,26.31845]
[1672678583771,15.41119593,1218.5,1218.3,24.72345]
[1672678583988,15.34519593,1218.5,1218.3,24.72345]
[1672678584145,3.6798424,1218.4,1218.3,24.72345]
[1672678584610,15.41119593,1218.5,1218.3,24.72345]
[1672678584834,15.34519593,1218.5,1218.3,24.72345]
[1672678586399,3.06215046,1218.4,1218.3,24.72345]
[1672678587095,15.41119593,1218.5,1218.3,24.72345]
[1672678587356,3.06240098,1218.4,1218.3,24.72345]
[1672678587496,15.41119593,1218.5,1218.3,24.72345]
[1672678587704,3.06233945,1218.4,1218.3,24.72345]
[1672678588030,3.6798424,1218.4,1218.3,24.72345]
[1672678589563,3.1798424,1218.4,1218.3,24.72345]
[1672678592293,8.1798424,1218.4,1218.3,24.72345]
[1672678596072,9.33281968,1218.4,1218.3,24.72345]
[1672678598109,4.33281968,1218.4,1218.3,24.72345]
[1672678605630,1.15297728,1218.4,1218.3,24.97583382]
[1672678606311,4.33281968,1218.4,1218.3,24.97583382]
[1672678606625,1.15297728,1218.4,1218.3,24.97583382]
[1672678607514,4.21735302,1218.4,1218.3,24.97583382]
[1672678610224,1.15297728,1218.4,1218.3,24.97583382]
[1672678610899,4.33281968,1218.4,1218.3,24.97583382]
[1672678612363,4.33281968,1218.4,1218.3,24.9719981]
[1672678612524,5.44967576,1218.4,1218.3,24.9719981]
[1672678612727,5.45167576,1218.4,1218.3,24.9689981]
[1672678612937,5.44967576,1218.4,1218.3,24.9719981]
[1672678613149,1.15297728,1218.4,1218.3,24.9719981]
[1672678613398,5.44967576,1218.4,1218.3,24.9719981]
[1672678613629,4.83353528,1218.4,1218.3,24.9719981]
[1672678614314,1.15297728,1218.4,1218.3,24.9719981]
[1672678614523,5.44967576,1218.4,1218.3,24.9719981]
[1672678615881,1.15297728,1218.4,1218.3,24.9719981]
[1672678616563,5.44967576,1218.4,1218.3,24.9719981]
[1672678617140,1.15297728,1218.4,1218.3,24.9719981]
[1672678618951,5.44967576,1218.4,1218.3,24.9719981]
[1672678619565,5.44967576,1218.4,1218.3,24.71961428]
[1672678630617,10.44967576,1218.4,1218.3,24.71961428]
[1672678634436,10.44967576,1218.4,1218.3,24.71702904]
[1672678635640,10.44967576,1218.4,1218.3,8.30072904]
[1672678635989,10.44967576,1218.4,1218.3,16.50887904]
[1672678636748,5.44967576,1218.4,1218.3,16.50887904]
[1672678636954,1.15297728,1218.4,1218.3,8.30072904]
[1672678637324,6.23091387,1218.4,1218.3,8.30072904]
[1672678637538,11.23091387,1218.4,1218.3,8.30072904]
[1672678638534,11.23091387,1218.4,1218.3,0.099]
[1672678638700,11.23091387,1218.4,1218.2,24.72435]
[1672678639052,4.29439967,1218.3,1218.2,24.72435]
[1672678655054,5.68309901,1218.3,1218.2,24.72435]
[1672678655220,5.68309901,1218.3,1218.2,24.72206726]
[1672678663535,1.38869934,1218.3,1218.2,24.72206726]
[1672678664165,5.07219919,1218.3,1218.2,24.72206726]
[1672678671484,5.07219919,1218.3,1218.2,24.97445108]
[1672678679311,5.07219919,1218.3,1218.2,24.97189488]
[1672678680093,5.06876515,1218.3,1218.2,24.97189488]
[1672678683064,5.06876515,1218.3,1218.2,24.71951106]
[1672678683986,5.06876515,1218.3,1218.2,24.97189488]
[1672678684727,1.3852653,1218.3,1218.2,24.97189488]
[1672678686474,4.4526046,1218.3,1218.2,24.97189488]
[1672678688011,4.4526046,1218.3,1218.2,24.71951106]
[1672678688481,5.06876515,1218.3,1218.2,24.71951106]
[1672678692132,5.06876515,1218.3,1218.2,24.97189488]
[1672678698087,5.06876515,1218.3,1218.2,24.71951106]
[1672678698563,5.06876515,1218.3,1218.2,24.97189488]
[1672678700835,1.3852653,1218.3,1218.2,24.97189488]
[1672678701756,5.67966497,1218.3,1218.2,24.97189488]
[1672678703485,5.67966497,1218.3,1218.2,24.96905833]
[1672678703703,1.3852653,1218.3,1218.2,24.96905833]
[1672678704069,5.67966497,1218.3,1218.2,24.96905833]
[1672678705019,5.67966497,1218.3,1218.2,0.35138382]
[1672678705229,5.67966497,1218.3,1218.2,8.46121382]
[1672678705230,6.29616497,1218.3,1218.2,8.46121382]
[1672678705467,6.29616497,1218.3,1218.2,8.30783]
[1672678705700,5.67966497,1218.3,1218.2,8.30783]
[1672678709106,5.67966497,1218.3,1218.2,0.099]
[1672678709278,5.67966497,1218.3,1218.2,8.20883]
[1672678709492,5.67966497,1218.3,1218.2,8.30783]
[1672678711287,5.67966497,1218.3,1218.2,16.51666]
[1672678711507,5.67966497,1218.3,1218.2,24.72549]
[1672678718606,5.06434029,1218.3,1218.2,24.72549]
[1672678719504,5.06417113,1218.3,1218.2,24.72549]
[1672678723440,5.06417113,1218.3,1218.2,24.97787382]
[1672678724879,5.06417113,1218.3,1218.2,24.97495399]
[1672678729397,1.3852653,1218.3,1218.2,24.72257017]
[1672678730231,5.06614316,1218.3,1218.2,24.72257017]
[1672678730770,1.3852653,1218.3,1218.2,16.51374017]
[1672678730963,5.67966497,1218.3,1218.2,0.099]
[1672678731170,5.67966497,1218.3,1218.2,8.20883]
[1672678731432,5.67966497,1218.3,1218.2,8.30783]
[1672678731964,5.67966497,1218.3,1218.2,16.51666]
[1672678732182,5.67966497,1218.3,1218.2,24.72549]
[1672678738025,10.67966497,1218.3,1218.2,24.72549]
[1672678747210,5.67966497,1218.3,1218.2,24.72549]
[1672678747721,5.67966497,1218.3,1218.2,24.72343042]
[1672678748252,10.67966497,1218.3,1218.2,27.72343042]
[1672678754583,6.3852653,1218.3,1218.2,27.72343042]
[1672678757267,10.68319493,1218.3,1218.2,27.72343042]
[1672678760732,5.68319493,1218.3,1218.2,27.72343042]
[1672678761356,1.3852653,1218.3,1218.2,27.72343042]
[1672678761784,6.3852653,1218.3,1218.2,27.72343042]
[1672678762239,6.3852653,1218.3,1218.2,11.30577042]
[1672678762620,11.46320189,1218.3,1218.2,19.51460042]
[1672678763692,11.46320189,1218.3,1218.2,27.72343042]
[1672678764091,11.46320189,1218.3,1218.2,19.51460042]
[1672678764561,21.58118902,1218.3,1218.2,0.099]
[1672678764771,45.72251293,1218.3,1218.0,0.099]
[1672678764985,45.72251293,1218.3,1217.9,30.12299]
[1672678764986,5.30694099,1218.1,1217.9,30.12299]
[1672678765194,3.68231303,1218.0,1217.9,24.73039]
[1672678766192,5.11732877,1218.0,1217.9,24.73039]
[1672678766455,5.11732877,1218.0,1217.9,27.73039]
[1672678767985,5.11932877,1218.0,1217.9,27.72739]
[1672678768246,5.11732877,1218.0,1217.9,27.73039]
[1672678769129,10.11732877,1218.0,1217.9,27.73039]
[1672678769591,10.11732877,1218.0,1217.9,3.0969124]
[1672678769763,17.03619789,1218.0,1217.9,16.4217]
[1672678769973,13.97048486,1218.0,1217.9,3.0969124]
[1672678770293,13.97048486,1218.0,1217.9,3.0]
[1672678771079,18.26642585,1218.0,1217.9,3.0]
[1672678771236,18.26642585,1218.0,1217.8,11.3081224]
[1672678771452,8.67666434,1217.9,1217.8,11.3081224]
[1672678771656,8.67666434,1217.9,1217.8,19.5194824]
[1672678773498,5.0,1217.9,1217.8,27.7310024]
[1672678774090,8.67666434,1217.9,1217.8,27.7310024]
[1672678774761,12.67279325,1217.9,1217.8,27.7310024]
[1672678774928,12.67279325,1217.9,1217.8,19.5194824]
[1672678774929,11.86641106,1217.9,1217.8,19.5194824]
[1672678775139,11.86641106,1217.9,1217.8,3.0969124]
[1672678775348,11.86641106,1217.9,1217.8,19.42304]
[1672678775565,8.18974672,1217.9,1217.8,19.5199524]
[1672678775757,8.05565074,1217.9,1217.8,19.5199524]
[1672678776447,12.20453115,1217.9,1217.8,19.5199524]
[1672678776664,13.14499005,1217.9,1217.8,19.5199524]
[1672678777248,12.20478537,1217.9,1217.8,19.5199524]
[1672678778596,12.20478537,1217.9,1217.8,27.7314724]
[1672678778861,12.20371176,1217.9,1217.8,27.7314724]
[1672678786810,14.64975061,1217.9,1217.8,27.7314724]
[1672678787486,10.50088947,1217.9,1217.8,27.7314724]
[1672678787657,7.44216776,1217.9,1217.8,27.7314724]
[1672678790623,10.50088947,1217.9,1217.8,11.3084324]
[1672678791003,10.50088947,1217.9,1217.8,3.0969124]
[1672678791270,10.50088947,1217.9,1217.8,19.42304]
[1672678791478,10.50088947,1217.9,1217.8,19.5199524]
[1672678791635,10.50215782,1217.9,1217.8,19.5199524]
[1672678792390,8.05485062,1217.9,1217.8,19.5199524]
[1672678794018,8.67145062,1217.9,1217.8,19.5199524]
[1672678795316,12.82031176,1217.9,1217.8,27.7314724]
[1672678795775,12.20371176,1217.9,1217.8,19.5199524]
[1672678796195,12.20371176,1217.9,1217.8,27.7314724]
[1672678797585,9.14499005,1217.9,1217.8,27.7314724]
[1672678797791,9.14499005,1217.9,1217.8,27.72864449]
[1672678799493,12.82165439,1217.9,1217.8,27.72864449]
[1672678801183,7.61923363,1217.9,1217.8,27.72864449]
[1672678801329,3.67666434,1217.9,1217.8,27.72864449]
[1672678802599,8.67666434,1217.9,1217.8,27.72864449]
[1672678805956,5.0,1217.9,1217.8,27.72864449]
[1672678810386,8.67666434,1217.9,1217.8,27.72864449]
[1672678813164,3.67666434,1217.9,1217.8,27.72864449]
[1672678814173,8.67666434,1217.9,1217.8,27.72864449]
[1672678815524,8.67666434,1217.9,1217.8,19.51712449]
[1672678816208,8.67866434,1217.9,1217.8,19.51412449]
[1672678816423,8.67666434,1217.9,1217.8,19.51712449]
[1672678817633,8.67666434,1217.9,1217.8,27.72864449]
[1672678821987,10.10714894,1217.9,1217.8,27.72864449]
[1672678823679,1.4304846,1217.9,1217.8,27.72864449]
[1672678824038,5.10714894,1217.9,1217.8,27.72864449]
[1672678824563,4.49927092,1217.9,1217.8,27.72864449]
[1672678824809,1.4304846,1217.9,1217.8,27.72864449]
[1672678825020,1.4304846,1217.9,1217.8,27.72486238]
[1672678826349,6.95437829,1217.9,1217.8,27.9772462]
[1672678826814,6.95437829,1217.9,1217.8,28.9922462]
[1672678827561,5.10714894,1217.9,1217.8,28.9922462]
[1672678827883,5.10714894,1217.9,1217.8,27.9772462]
[1672678829362,5.10714894,1217.9,1217.8,27.72486238]
[1672678832257,1.4304846,1217.9,1217.8,27.72486238]
[1672678832627,5.10714894,1217.9,1217.8,27.72486238]
[1672678832815,1.4304846,1217.9,1217.8,27.72486238]
[1672678832983,5.10714894,1217.9,1217.8,27.72486238]
[1672678838899,5.10714894,1217.9,1217.8,3.09030238]
[1672678839094,5.10714894,1217.9,1217.8,19.41642998]
[1672678839307,5.10714894,1217.9,1217.8,27.72486238]
[1672678845229,5.10714894,1217.9,1217.8,27.72148824]
[1672678849711,7.35642559,1217.9,1217.8,27.72148824]
[1672678850183,3.0604846,1217.9,1217.8,27.72148824]
[1672678851076,11.74358731,1217.9,1217.8,27.72148824]
[1672678855761,12.35642559,1217.9,1217.8,27.72148824]
[1672678857146,7.35642559,1217.9,1217.8,27.72148824]
[1672678858158,12.35642559,1217.9,1217.8,27.72148824]
[1672678858799,11.74181304,1217.9,1217.8,27.67538612]
[1672678860545,14.98949099,1217.9,1217.8,19.46386612]
[1672678861068,14.98949099,1217.9,1217.8,27.67538612]
[1672678861474,14.98949099,1217.9,1217.8,19.46386612]
[1672678861816,14.98949099,1217.9,1217.8,27.67538612]
[1672678863377,12.35642559,1217.9,1217.8,27.67538612]
[1672678864279,10.11045961,1217.9,1217.8,27.67538612]
[1672678866422,6.4304846,1217.9,1217.8,27.67538612]
[1672678870265,6.4324846,1217.9,1217.8,27.67238612]
[1672678870478,6.4304846,1217.9,1217.8,27.67538612]
[1672678870686,6.4324846,1217.9,1217.8,27.67238612]
[1672678870894,12.56462797,1217.9,1217.8,27.67538612]
[1672678871210,13.79025952,1217.9,1217.8,27.67538612]
[1672678872746,8.79025952,1217.9,1217.8,27.67538612]
[1672678878237,5.1104523,1217.9,1217.8,27.67538612]
[1672678879956,8.79025952,1217.9,1217.8,27.67538612]
[1672678880167,5.1104523,1217.9,1217.8,27.67538612]
[1672678880602,8.79025952,1217.9,1217.8,27.67538612]
[1672678882248,8.79025952,1217.9,1217.8,27.67238875]
[1672678890009,3.67980722,1218.1,1217.8,31.43817109]
[1672678890230,4.29594099,1218.2,1218.0,2.608]
[1672678890231,0.066,1218.2,1218.0,2.608]
[1672678890568,5.0,1218.1,1218.0,23.02836]
[1672678890709,5.0,1218.1,1218.0,27.5654524]
[1672678890914,0.066,1218.2,1218.0,30.5654524]
[1672678891188,15.51724099,1218.3,1218.1,3.0]
[1672678891413,15.51724099,1218.3,1218.1,19.41825]
[1672678891715,15.51724099,1218.3,1218.1,19.5150724]
[1672678891929,15.51724099,1218.3,1218.1,27.7242724]
[1672678892073,15.51724099,1218.3,1218.1,19.5150724]
[1672678892557,15.51724099,1218.3,1218.1,27.7245724]
[1672678893798,4.29594099,1218.2,1218.1,11.3058724]
[1672678894136,13.29594099,1218.2,1218.1,11.3058724]
[1672678894289,13.29594099,1218.2,1218.1,19.5153724]
[1672678895338,13.29594099,1218.2,1218.1,19.5159124]
[1672678896229,9.29594099,1218.2,1218.1,19.5159124]
[1672678897792,9.29594099,1218.2,1218.1,27.7254124]
[1672678898543,9.29594099,1218.2,1218.1,19.5159124]
[1672678898702,9.29594099,1218.2,1218.1,27.7254124]
[1672678899867,5.0,1218.2,1218.1,27.7254124]
[1672678901059,8.67708377,1218.2,1218.1,27.7254124]
[1672678902372,5.0,1218.2,1218.1,27.7254124]
[1672678902839,9.29594099,1218.2,1218.1,27.7254124]
[1672678903055,9.29594099,1218.2,1218.1,24.7254124]
[1672678903907,9.29594099,1218.2,1218.1,8.3064124]
[1672678904390,13.29328604,1218.2,1218.1,8.3064124]
[1672678904857,16.25880267,1218.2,1218.1,8.3064124]
[1672678905131,16.25880267,1218.2,1218.1,16.5159124]
[1672678906643,16.25880267,1218.2,1218.1,8.3064124]
[1672678907597,16.25880267,1218.2,1218.1,16.5159124]
[1672678908379,16.25880267,1218.2,1218.1,8.3064124]
[1672678909408,12.25880267,1218.2,1218.1,16.5159124]
[1672678909602,12.25880267,1218.2,1218.1,8.3064124]
[1672678911316,12.25880267,1218.2,1218.1,0.0969124]
[1672678911543,12.25880267,1218.2,1218.0,8.3064224]
[1672678911846,4.29594099,1218.1,1218.0,8.3064224]
[1672678912001,4.29594099,1218.1,1218.0,0.0969124]
[1672678912210,9.29594099,1218.1,1218.0,8.21018]
[1672678912436,9.29594099,1218.1,1218.0,24.7274524]
[1672678917180,8.67980916,1218.1,1218.0,24.7274524]
[1672678920070,9.29594099,1218.1,1218.0,24.7274524]
[1672678925324,9.29594099,1218.1,1218.0,16.51495201]
[1672678928115,9.29594099,1218.1,1218.0,24.72513201]
[1672678929421,9.29594099,1218.1,1218.0,0.0969124]
[1672678929588,9.29594099,1218.1,1217.9,19.5178624]
[1672678930027,3.68017296,1218.0,1217.9,19.5178624]
[1672678931636,9.36194099,1218.1,1217.9,19.5178624]
[1672678931939,9.29594099,1218.1,1217.9,19.5178624]
[1672678932964,4.29594099,1218.1,1217.9,19.5178624]
[1672678933413,9.45080213,1218.0,1217.9,0.0969124]
[1672678933624,15.84604143,1218.0,1217.8,0.0969124]
[1672678933812,4.29388824,1217.9,1217.7,24.7322724]
[1672678933982,3.6803065,1217.8,1217.7,8.3085524]
[1672678934402,3.6803065,1217.8,1217.7,24.7329524]
[1672678934671,3.6803065,1217.8,1217.7,27.7329524]
[1672678939829,3.7463065,1217.9,1217.7,27.7329524]
[1672678940000,3.6803065,1217.9,1217.7,27.7329524]
[1672678941806,3.06484975,1217.8,1217.7,27.7329524]
[1672678942021,3.06484975,1217.8,1217.7,27.98533622]
[1672678942852,5.51692624,1217.8,1217.7,27.98533622]
[1672678943085,3.06484975,1217.8,1217.7,27.98533622]
[1672678943663,5.51693815,1217.8,1217.7,27.98533622]
[1672678947523,2.4520884,1217.8,1217.7,27.98533622]
[1672678947809,5.51693815,1217.8,1217.7,27.98533622]
[1672678948622,3.7463065,1217.9,1217.7,27.98533622]
[1672678948807,3.06558207,1217.8,1217.7,27.98533622]
[1672678949487,3.06558207,1217.8,1217.7,27.98328339]
[1672678949919,5.51812062,1217.8,1217.7,27.98328339]
[1672678950955,2.45253855,1217.8,1217.7,28.99828339]
[1672678951511,2.45253855,1217.8,1217.7,29.22828339]
[1672678953056,3.63776522,1217.8,1217.7,29.22828339]
[1672678954045,1.18522667,1217.8,1217.7,29.22828339]
[1672678954735,5.58412062,1217.9,1217.8,4.0]
[1672678954942,5.51812062,1217.9,1217.8,8.015]
[1672678955171,5.51812062,1217.9,1217.8,32.99680339]
[1672678955420,3.06558207,1217.9,1217.8,32.99680339]
[1672678959416,5.51801844,1217.9,1217.8,32.99680339]
[1672678959579,5.51803564,1217.9,1217.8,32.99680339]
[1672678960267,3.06558207,1217.9,1217.8,32.99680339]
[1672678960617,5.51842765,1217.9,1217.8,32.99680339]
[1672678961662,3.06558207,1217.9,1217.8,32.99680339]
[1672678964882,5.51863403,1217.9,1217.8,32.99680339]
[1672678966621,3.06558207,1217.9,1217.8,32.99680339]
[1672678967106,14.5441065,1218.0,1217.8,32.99680339]
[1672678967248,14.4781065,1218.0,1217.9,3.0]
[1672678967463,14.4781065,1218.0,1217.9,19.4217]
[1672678967781,14.4781065,1218.0,1217.9,27.72740957]
[1672678971243,14.4781065,1218.0,1217.9,27.72468665]
[1672678972104,13.86438105,1218.0,1217.9,27.72468665]
[1672678972318,13.86437897,1218.0,1217.9,27.72468665]
[1672678975086,3.06657897,1218.0,1217.9,28.73968665]
[1672678975296,3.7463065,1218.1,1218.0,4.0]
[1672678975297,0.066,1218.1,1218.0,4.0]
[1672678975609,3.6803065,1218.2,1218.0,29.64554]
[1672678975764,3.6803065,1218.2,1218.0,25.99278339]
[1672678976880,3.6803065,1218.2,1218.0,24.97778339]
[1672678977185,3.6803065,1218.1,1218.0,24.97778339]
[1672678977406,3.7463065,1218.2,1218.0,27.97778339]
[1672678977552,3.6803065,1218.1,1218.0,24.97778339]
[1672678977762,3.6803065,1218.1,1218.0,27.97778339]
[1672678978973,3.7463065,1218.2,1218.0,27.97778339]
[1672678979144,3.6803065,1218.1,1218.0,27.97778339]
[1672678979355,3.7463065,1218.2,1218.0,27.97778339]
[1672678979561,3.6803065,1218.1,1218.0,27.97778339]
[1672678979756,3.7463065,1218.2,1218.0,27.97778339]
[1672678979967,3.6803065,1218.2,1218.0,27.97778339]
[1672678981504,3.6803065,1218.1,1218.0,27.97778339]
[1672678982355,3.7463065,1218.2,1218.0,27.97778339]
[1672678982490,3.6803065,1218.2,1218.0,27.97778339]
[1672678983339,3.06678286,1218.1,1218.0,27.97778339]
[1672678983548,3.7463065,1218.2,1218.0,27.97778339]
[1672678983755,3.6803065,1218.2,1218.0,27.97778339]
[1672678986015,3.0668501,1218.1,1218.0,27.97778339]
[1672678986190,3.7463065,1218.2,1218.0,27.97778339]
[1672678986400,3.06675301,1218.1,1218.0,27.97778339]
[1672678988430,3.7463065,1218.2,1218.0,27.97778339]
[1672678988590,3.6803065,1218.2,1218.0,27.97778339]
[1672678989053,3.0665644,1218.1,1218.0,27.97778339]
[1672678995768,3.06691677,1218.1,1218.0,27.97778339]
[1672679000315,3.06691677,1218.1,1218.0,27.97498389]
[1672679000883,3.7463065,1218.2,1218.0,27.97498389]
[1672679001145,3.06690317,1218.1,1218.0,27.97498389]
[1672679003936,3.06690317,1218.1,1218.0,27.72260007]
[1672679004146,3.06690317,1218.1,1218.0,27.97498389]
[1672679006452,10.7515005,1218.2,1218.1,4.0]
[1672679006815,8.36315118,1218.2,1218.1,37.25302666]
[1672679006991,8.36315118,1218.2,1218.1,37.57788623]
[1672679007562,0.066,1218.3,1218.2,4.0]
[1672679007878,0.066,1218.3,1218.2,25.66866]
[1672679007879,0.002,1218.3,1218.2,25.66866]
[1672679008184,14.47123311,1218.5,1218.2,34.22473339]
[1672679008400,14.47123311,1218.5,1218.4,24.62244]
[1672679008617,19.47123311,1218.5,1218.4,24.71729957]
[1672679008977,14.47123311,1218.5,1218.4,24.71729957]
[1672679009182,10.7901,1218.5,1218.4,24.71729957]
[1672679013538,13.85286479,1218.5,1218.4,24.71729957]
[1672679013748,13.85286479,1218.5,1218.4,24.96968339]
[1672679017227,7.68919479,1218.5,1218.4,25.98468339]
[1672679017559,3.12876479,1218.6,1218.4,29.21468339]
[1672679017709,3.06276479,1218.6,1218.5,31.62043]
[1672679017922,8.06276479,1218.6,1218.5,31.71528957]